fUSD/lending_fUSD_20250113
["ID","MTS","AMOUNT","RATE_DAILY","PERIOD"]
[348769722,1736777452925,-500.0,0.00011365,2]
[348769723,1736777452934,-500.0,0.00011365,2]
[348769724,1736777452943,-1775.91,0.00011365,2]
[348769725,1736777452952,-500.0,0.00011365,2]
[348769726,1736777452961,-500.0,0.00011365,2]
[348769727,1736777452971,-500.0,0.00011365,2]
[348769728,1736777452981,-484.33,0.00011365,2]
[348769729,1736777452991,-500.0,0.00011365,2]
[348769730,1736777453000,-500.0,0.00011365,2]
[348769731,1736777453010,-570.22545759,0.00011365,2]
[348769732,1736777453020,-500.0,0.00011365,2]
[348769733,1736777453029,-500.0,0.00011365,2]
[348769734,1736777453038,-500.0,0.00011365,2]
[348769735,1736777453048,-500.0,0.00011365,2]
[348769736,1736777453057,-500.0,0.00011365,2]
[348769737,1736777453066,-500.0,0.00011365,2]
[348769738,1736777453076,-175.05643359,0.00011365,2]
[348769739,1736777453085,-201.06996649,0.00011365,2]
[348769740,1736777453095,-500.0,0.00011365,2]
[348769741,1736777453106,-872.88,0.00011365,2]
[348769742,1736777453115,-500.0,0.00011365,2]
[348769743,1736777453124,-551.49,0.00011365,2]
[348769744,1736777453134,-500.0,0.00011365,2]
[348769745,1736777453143,-500.0,0.00011365,2]
[348769746,1736777453154,-500.0,0.00011365,2]
[348769747,1736777453168,-865.87,0.00011365,2]
[348769748,1736777453178,-500.0,0.00011365,2]
[348769749,1736777453188,-500.0,0.00011365,2]
[348769750,1736777453199,-797.99,0.00011365,2]
[348769751,1736777453209,-500.0,0.00011365,2]
[348769752,1736777453220,-940.25,0.00011365,2]
[348769753,1736777453230,-500.0,0.00011365,2]
[348769754,1736777453241,-835.52,0.00011365,2]
[348769755,1736777453251,-500.0,0.00011365,2]
[348769756,1736777453261,-500.0,0.00011365,2]
[348769757,1736777453271,-528.6,0.00011365,2]
[348769758,1736777453281,-500.0,0.00011366,2]
[348769759,1736777453291,-500.0,0.00011366,2]
[348769760,1736777453300,-500.0,0.00011366,2]
[348769761,1736777453311,-1107.95,0.00011366,2]
[348769762,1736777453321,-3147.5,0.00011366,2]
[348769763,1736777453332,-500.0,0.00011366,2]
[348769764,1736777453343,-794.02,0.00011366,2]
[348769765,1736777453353,-674.05,0.00011366,2]
[348769766,1736777453363,-872.35,0.00011366,2]
[348769767,1736777453374,-1319.23,0.00011366,2]
[348769768,1736777453385,-1575.65,0.00011366,2]
[348769769,1736777453396,-2283.69,0.00011366,2]
[348769770,1736777453407,-680.21,0.00011366,2]
[348769771,1736777453418,-1931.31,0.00011366,2]
[348769772,1736777453428,-500.0,0.00011366,2]
[348769773,1736777453438,-1060.09,0.00011366,2]
[348769774,1736777453449,-1040.65,0.00011366,2]
[348769775,1736777453459,-761.73,0.00011366,2]
[348769776,1736777453470,-698.49,0.00011366,2]
[348769777,1736777453481,-637.412955,0.00011366,2]
[348769778,1736777453492,-671.58,0.00011366,2]
[348769779,1736777453502,-1037.38,0.00011366,2]
[348769780,1736777453513,-2091.78,0.00011366,2]
[348769781,1736777453525,-240.5866716,0.00011383,2]
[348769782,1736777453536,-256.05497078,0.00011394,2]
[348769783,1736777453546,-400.0,0.000114,4]
[348769784,1736777453558,-240.5866716,0.00011452,2]
[348769785,1736777453568,-400.0,0.000115,4]
[348769786,1736777453578,-500.0,0.00011506,2]
[348769787,1736777453588,-610.40920599,0.00011506,2]
[348769788,1736777453600,-1435.01,0.00011506,2]
[348769789,1736777453613,-1143.34,0.00011506,2]
[348769790,1736777453623,-1009.42,0.00011506,2]
[348769791,1736777453634,-500.0,0.00011506,2]
[348769792,1736777453645,-1455.34,0.00011506,2]
[348769793,1736777453655,-1163.72,0.00011506,2]
[348769794,1736777453665,-645.57,0.00011506,2]
[348769795,1736777453676,-500.0,0.00011506,2]
[348769796,1736777453687,-500.0,0.00011506,2]
[348769797,1736777453697,-982.72,0.00011507,2]
[348769798,1736777453708,-2751.0,0.00011507,2]
[348769799,1736777453718,-240.5866716,0.00011521,2]
[348769800,1736777453728,-213.96529045,0.00011523,2]
[348769801,1736777453738,-240.5866716,0.0001159,2]
[348769802,1736777453748,-256.05497078,0.00011596,2]
[348769803,1736777453759,-400.0,0.000116,4]
[348769804,1736777453769,-500.0,0.00011638,2]
[348769805,1736777453779,-500.0,0.00011638,2]
[348769806,1736777453788,-747.91,0.00011638,2]
[348769807,1736777453799,-500.0,0.00011638,2]
[348769808,1736777453810,-500.0,0.00011638,2]
[348769809,1736777453820,-500.0,0.00011638,2]
[348769810,1736777453830,-198.7028454,0.00011638,2]
[348769811,1736777453840,-476.705206,0.00011638,2]
[348769812,1736777453850,-500.0,0.00011638,2]
[348769813,1736777453864,-820.8,0.00011638,2]
[348769814,1736777453874,-500.0,0.00011638,2]
[348769815,1736777453884,-1112.65,0.00011638,2]
[348769816,1736777453894,-2054.5,0.00011638,2]
[348769817,1736777453904,-500.0,0.00011638,2]
[348769818,1736777453914,-1088.44,0.00011638,2]
[348769819,1736777453924,-1051.32,0.00011638,2]
[348769820,1736777453935,-2523.34,0.00011638,2]
[348769821,1736777453945,-500.0,0.00011638,2]
[348769822,1736777453956,-1243.51,0.00011638,2]
[348769823,1736777453966,-759.58,0.00011638,2]
[348769824,1736777453976,-2333.43,0.00011638,2]
[348769825,1736777453986,-697.84,0.00011639,2]
[348769826,1736777453996,-920.92,0.00011639,2]
[348769827,1736777454006,-629.0,0.00011639,2]
[348769828,1736777454016,-515.86,0.00011639,2]
[348769829,1736777454026,-500.0,0.00011639,2]
[348769830,1736777454040,-500.0,0.00011639,2]
[348769831,1736777454050,-500.0,0.00011639,2]
[348769832,1736777454060,-535.48,0.00011639,2]
[348769833,1736777454070,-500.0,0.00011639,2]
[348769834,1736777454080,-661.51,0.00011639,2]
[348769835,1736777454091,-885.48,0.00011639,2]
[348769836,1736777454101,-943.92,0.00011639,2]
[348769837,1736777454112,-1290.55,0.00011639,2]
[348769838,1736777454122,-500.0,0.00011639,2]
[348769839,1736777454132,-500.0,0.00011639,2]
[348769840,1736777454143,-500.0,0.00011639,2]
[348769841,1736777454153,-500.0,0.00011639,2]
[348769842,1736777454163,-510.15,0.00011639,2]
[348769843,1736777454174,-500.0,0.00011639,2]
[348769844,1736777454185,-500.0,0.00011639,2]
[348769845,1736777454197,-532.09,0.00011639,2]
[348769846,1736777454207,-500.0,0.00011639,2]
[348769847,1736777454217,-500.0,0.00011639,2]
[348769848,1736777454227,-500.0,0.00011639,2]
[348769849,1736777454237,-500.0,0.00011639,2]
[348769850,1736777454247,-500.0,0.00011639,2]
[348769851,1736777454258,-500.0,0.00011639,2]
[348769852,1736777454267,-484.32,0.00011639,2]
[348769853,1736777454279,-500.0,0.00011639,2]
[348769854,1736777454289,-500.0,0.00011639,2]
[348769855,1736777454299,-530.88,0.00011639,2]
[348769856,1736777454308,-500.0,0.00011639,2]
[348769857,1736777454318,-500.0,0.00011639,2]
[348769858,1736777454329,-500.0,0.00011639,2]
[348769859,1736777454339,-386.68885339,0.00011639,2]
[348769860,1736777454349,-1763.38,0.00011639,2]
[348769861,1736777454361,-611.9,0.00011639,2]
[348769862,1736777454371,-500.0,0.00011639,2]
[348769863,1736777454381,-563.5,0.00011639,2]
[348769864,1736777454391,-312.64060626,0.00011639,2]
[348769865,1736777454402,-500.0,0.00011639,2]
[348769866,1736777454413,-581.76,0.00011639,2]
[348769867,1736777454423,-500.0,0.00011639,2]
[348769868,1736777454434,-500.0,0.00011639,2]
[348769869,1736777454444,-500.0,0.00011639,2]
[348769870,1736777454454,-500.0,0.00011639,2]
[348769871,1736777454465,-647.68,0.00011639,2]
[348769872,1736777454475,-500.0,0.00011639,2]
[348769873,1736777454485,-500.0,0.00011639,2]
[348769874,1736777454496,-500.0,0.00011639,2]
[348769875,1736777454506,-500.0,0.00011639,2]
[348769876,1736777454517,-634.78,0.00011639,2]
[348769877,1736777454529,-1006.54,0.00011639,2]
[348769878,1736777454539,-500.0,0.00011639,2]
[348769879,1736777454549,-500.0,0.00011639,2]
[348769880,1736777454559,-500.0,0.00011639,2]
[348769881,1736777454570,-531.49,0.00011639,2]
[348769882,1736777454581,-640.42,0.00011639,2]
[348769883,1736777454591,-1186.93,0.00011639,2]
[348769884,1736777454601,-527.1,0.00011639,2]
[348769885,1736777454612,-500.0,0.00011639,2]
[348769886,1736777454622,-500.0,0.00011639,2]
[348769887,1736777454632,-500.0,0.00011639,2]
[348769888,1736777454643,-1867.13,0.00011639,2]
[348769889,1736777454654,-500.0,0.00011639,2]
[348769890,1736777454665,-500.0,0.00011639,2]
[348769891,1736777454674,-500.0,0.00011639,2]
[348769892,1736777454685,-749.12,0.00011639,2]
[348769893,1736777454695,-513.24,0.00011639,2]
[348769894,1736777454705,-2493.44,0.00011639,2]
[348769895,1736777454716,-500.0,0.00011639,2]
[348769896,1736777454727,-500.0,0.00011639,2]
[348769897,1736777454738,-500.0,0.00011639,2]
[348769898,1736777454748,-500.0,0.00011639,2]
[348769899,1736777454758,-1934.61,0.00011639,2]
[348769900,1736777454768,-500.0,0.00011639,2]
[348769901,1736777454778,-500.0,0.00011639,2]
[348769902,1736777454788,-500.0,0.00011639,2]
[348769903,1736777454798,-500.0,0.00011639,2]
[348769904,1736777454808,-1775.91,0.00011639,2]
[348769905,1736777454818,-500.0,0.00011639,2]
[348769906,1736777454828,-500.0,0.00011639,2]
[348769907,1736777454839,-500.0,0.00011639,2]
[348769908,1736777454849,-500.0,0.00011639,2]
[348769909,1736777454862,-229.89,0.00011639,2]
[348769910,1736777454873,-317.57966019,0.00011639,2]
[348769911,1736777454883,-500.0,0.00011639,2]
[348769912,1736777454897,-500.0,0.00011639,2]
[348769913,1736777454908,-500.0,0.00011639,2]
[348769914,1736777454919,-500.0,0.00011639,2]
[348769915,1736777454929,-500.0,0.00011639,2]
[348769916,1736777454940,-872.88,0.00011639,2]
[348769917,1736777454950,-500.0,0.00011639,2]
[348769918,1736777454960,-500.0,0.00011639,2]
[348769919,1736777454971,-551.49,0.00011639,2]
[348769920,1736777454981,-500.0,0.00011639,2]
[348769921,1736777454992,-500.0,0.00011639,2]
[348769922,1736777455002,-865.87,0.00011639,2]
[348769923,1736777455012,-500.0,0.00011639,2]
[348769924,1736777455022,-500.0,0.00011639,2]
[348769925,1736777455032,-797.99,0.00011639,2]
[348769926,1736777455042,-500.0,0.00011639,2]
[348769927,1736777455052,-940.25,0.00011639,2]
[348769928,1736777455062,-500.0,0.00011639,2]
[348769929,1736777455072,-835.52,0.00011639,2]
[348769930,1736777455082,-500.0,0.00011639,2]
[348769931,1736777455092,-500.0,0.00011639,2]
[348769932,1736777455104,-500.0,0.0001164,2]
[348769933,1736777455115,-1107.95,0.0001164,2]
[348769934,1736777455124,-3147.5,0.0001164,2]
[348769935,1736777455134,-500.0,0.0001164,2]
[348769936,1736777455144,-794.02,0.0001164,2]
[348769937,1736777455154,-872.35,0.0001164,2]
[348769938,1736777455164,-674.05,0.0001164,2]
[348769939,1736777455174,-1319.23,0.0001164,2]
[348769940,1736777455185,-1575.65,0.0001164,2]
[348769941,1736777455195,-2283.69,0.0001164,2]
[348769942,1736777455205,-680.21,0.0001164,2]
[348769943,1736777455216,-1931.31,0.0001164,2]
[348769944,1736777455226,-500.0,0.0001164,2]
[348769945,1736777455236,-1060.09,0.0001164,2]
[348769946,1736777455247,-1040.65,0.0001164,2]
[348769947,1736777455257,-761.73,0.0001164,2]
[348769948,1736777455267,-698.49,0.0001164,2]
[348769949,1736777455278,-637.412955,0.0001164,2]
[348769950,1736777455288,-671.58,0.0001164,2]
[348769951,1736777455298,-1037.38,0.0001164,2]
[348769952,1736777455308,-2091.78,0.0001164,2]
[348769953,1736777455319,-240.5866716,0.00011659,2]
[348769954,1736777455329,-400.0,0.000117,4]
[348769955,1736777455340,-150.0,0.00011708,2]
[348769956,1736777455350,-3897.0,0.00011708,2]
[348769957,1736777455365,-1174.0,0.00011708,2]
[348769958,1736777455376,-9629.0,0.00011708,2]
[348769959,1736777455386,-240.5866716,0.00011728,2]
[348769960,1736777455397,-213.96529045,0.00011749,2]
[348769961,1736777455409,-1435.01,0.0001178,2]
[348769962,1736777455420,-1143.34,0.0001178,2]
[348769963,1736777455431,-1009.42,0.0001178,2]
[348769964,1736777455670,-1455.34,0.0001178,2]
[348769965,1736777455682,-1163.72,0.0001178,2]
[348769966,1736777455694,-645.57,0.0001178,2]
[348769967,1736777455706,-500.0,0.0001178,2]
[348769968,1736777455719,-500.0,0.0001178,2]
[348769969,1736777455729,-240.5866716,0.00011797,2]
[348769970,1736777455740,-256.05497078,0.00011797,2]
[348769971,1736777455753,-820.0,0.000118,4]
[348769972,1736777455766,-151.266,0.00011819,2]
[348769973,1736777455777,-1268.0,0.00011819,2]
[348769974,1736777455787,-2016.0,0.00011819,2]
[348769975,1736777455798,-566.0,0.00011819,2]
[348769976,1736777455809,-635.0,0.00011819,2]
[348769977,1736777455820,-150.0,0.00011819,2]
[348769978,1736777455831,-1861.0,0.00011819,2]
[348769979,1736777455843,-1259.0,0.00011819,2]
[348769980,1736777455854,-820.0,0.00011819,2]
[348769981,1736777455872,-909.0,0.00011819,2]
[348769982,1736777455882,-2944.0,0.00011819,2]
[348769983,1736777455894,-537.0,0.00011819,2]
[348769984,1736777455905,-3977.0,0.00011819,2]
[348769985,1736777455918,-240.5866716,0.00011866,2]
[348769986,1736777455929,-133943.0,0.00011867,2]
[348769987,1736777455940,-150.55,0.00011867,2]
[348769988,1736777455951,-9126.77266898,0.0001191,2]
[348769989,1736777455962,-17439.46740302,0.0001191,2]
[348769990,1736777455972,-500.0,0.00011912,2]
[348769991,1736777455982,-500.0,0.00011912,2]
[348769992,1736777455992,-500.0,0.00011912,2]
[348769993,1736777456002,-747.91,0.00011912,2]
[348769994,1736777456012,-535.36174188,0.00011912,2]
[348769995,1736777456023,-500.0,0.00011912,2]
[348769996,1736777456034,-500.0,0.00011912,2]
[348769997,1736777456044,-476.705206,0.00011912,2]
[348769998,1736777456054,-500.0,0.00011912,2]
[348769999,1736777456064,-820.8,0.00011912,2]
[348770000,1736777456074,-500.0,0.00011912,2]
[348770001,1736777456086,-1112.65,0.00011912,2]
[348770002,1736777456096,-2054.5,0.00011912,2]
[348770003,1736777456110,-500.0,0.00011912,2]
[348770004,1736777456122,-1088.44,0.00011912,2]
[348770005,1736777456131,-1051.32,0.00011912,2]
[348770006,1736777456142,-2523.34,0.00011912,2]
[348770007,1736777456153,-500.0,0.00011912,2]
[348770008,1736777456164,-1243.51,0.00011912,2]
[348770009,1736777456175,-759.58,0.00011912,2]
[348770010,1736777456186,-2333.43,0.00011912,2]
[348770011,1736777456196,-697.84,0.00011913,2]
[348770012,1736777456206,-920.92,0.00011913,2]
[348770013,1736777456215,-629.0,0.00011913,2]
[348770014,1736777456226,-515.86,0.00011913,2]
[348770015,1736777456236,-500.0,0.00011913,2]
[348770016,1736777456246,-500.0,0.00011913,2]
[348770017,1736777456256,-500.0,0.00011913,2]
[348770018,1736777456266,-535.48,0.00011913,2]
[348770019,1736777456276,-500.0,0.00011913,2]
[348770020,1736777456287,-661.51,0.00011913,2]
[348770021,1736777456297,-885.48,0.00011913,2]
[348770022,1736777456307,-943.92,0.00011913,2]
[348770023,1736777456317,-1290.55,0.00011913,2]
[348770024,1736777456327,-500.0,0.00011913,2]
[348770025,1736777456337,-500.0,0.00011913,2]
[348770026,1736777456347,-500.0,0.00011913,2]
[348770027,1736777456359,-500.0,0.00011913,2]
[348770028,1736777456368,-510.15,0.00011913,2]
[348770029,1736777456378,-500.0,0.00011913,2]
[348770030,1736777456388,-500.0,0.00011913,2]
[348770031,1736777456397,-532.09,0.00011913,2]
[348770032,1736777456407,-500.0,0.00011913,2]
[348770033,1736777456417,-500.0,0.00011913,2]
[348770034,1736777456426,-483.74810133,0.00011913,2]
[348770035,1736777456437,-500.0,0.00011913,2]
[348770036,1736777456447,-500.0,0.00011913,2]
[348770037,1736777456456,-500.0,0.00011913,2]
[348770038,1736777456466,-500.0,0.00011913,2]
[348770039,1736777456475,-500.0,0.00011913,2]
[348770040,1736777456485,-530.88,0.00011913,2]
[348770041,1736777456495,-500.0,0.00011913,2]
[348770042,1736777456504,-500.0,0.00011913,2]
[348770043,1736777456514,-500.0,0.00011913,2]
[348770044,1736777456528,-1763.38,0.00011913,2]
[348770045,1736777456537,-611.9,0.00011913,2]
[348770046,1736777456547,-500.0,0.00011913,2]
[348770047,1736777456556,-563.5,0.00011913,2]
[348770048,1736777456566,-500.0,0.00011913,2]
[348770049,1736777456576,-581.76,0.00011913,2]
[348770050,1736777456586,-500.0,0.00011913,2]
[348770051,1736777456596,-500.0,0.00011913,2]
[348770052,1736777456609,-500.0,0.00011913,2]
[348770053,1736777456619,-500.0,0.00011913,2]
[348770054,1736777456629,-647.68,0.00011913,2]
[348770055,1736777456638,-500.0,0.00011913,2]
[348770056,1736777456648,-500.0,0.00011913,2]
[348770057,1736777456658,-500.0,0.00011913,2]
[348770058,1736777456667,-500.0,0.00011913,2]
[348770059,1736777456677,-634.78,0.00011913,2]
[348770060,1736777456689,-1006.54,0.00011913,2]
[348770061,1736777456699,-500.0,0.00011913,2]
[348770062,1736777456709,-500.0,0.00011913,2]
[348770063,1736777456719,-500.0,0.00011913,2]
[348770064,1736777456729,-531.49,0.00011913,2]
[348770065,1736777456738,-640.42,0.00011913,2]
[348770066,1736777456747,-1186.93,0.00011913,2]
[348770067,1736777456756,-527.1,0.00011913,2]
[348770068,1736777456765,-500.0,0.00011913,2]
[348770069,1736777456774,-500.0,0.00011913,2]
[348770070,1736777456784,-500.0,0.00011913,2]
[348770071,1736777456794,-500.0,0.00011913,2]
[348770072,1736777456803,-1867.13,0.00011913,2]
[348770073,1736777456814,-500.0,0.00011913,2]
[348770074,1736777456824,-500.0,0.00011913,2]
[348770075,1736777456835,-749.12,0.00011913,2]
[348770076,1736777456846,-513.24,0.00011913,2]
[348770077,1736777456861,-2493.44,0.00011913,2]
[348770078,1736777456874,-500.0,0.00011913,2]
[348770079,1736777456884,-184.38898046,0.00011913,2]
[348770080,1736777456896,-340.97900712,0.00011913,2]
[348770081,1736777456906,-1934.61,0.00011913,2]
[348770082,1736777456916,-500.0,0.00011913,2]
[348770083,1736777456927,-500.0,0.00011913,2]
[348770084,1736777456938,-500.0,0.00011913,2]
[348770085,1736777456948,-500.0,0.00011913,2]
[348770086,1736777456958,-1775.91,0.00011913,2]
[348770087,1736777456968,-586.29,0.00011913,2]
[348770088,1736777456978,-500.0,0.00011913,2]
[348770089,1736777456990,-500.0,0.00011913,2]
[348770090,1736777457000,-500.0,0.00011913,2]
[348770091,1736777457010,-500.0,0.00011913,2]
[348770092,1736777457020,-500.0,0.00011913,2]
[348770093,1736777457031,-189.68141278,0.00011913,2]
[348770094,1736777457042,-500.0,0.00011913,2]
[348770095,1736777457051,-500.0,0.00011913,2]
[348770096,1736777457060,-872.88,0.00011913,2]
[348770097,1736777457070,-500.0,0.00011913,2]
[348770098,1736777457080,-500.0,0.00011913,2]
[348770099,1736777457090,-551.49,0.00011913,2]
[348770100,1736777457100,-500.0,0.00011913,2]
[348770101,1736777457117,-500.0,0.00011913,2]
[348770102,1736777457127,-865.87,0.00011913,2]
[348770103,1736777457136,-500.0,0.00011913,2]
[348770104,1736777457146,-371.83,0.00011913,2]
[348770105,1736777457156,-797.99,0.00011913,2]
[348770106,1736777457166,-500.0,0.00011913,2]
[348770107,1736777457175,-940.25,0.00011913,2]
[348770108,1736777457185,-155.89,0.00011913,2]
[348770109,1736777457194,-835.52,0.00011913,2]
[348770110,1736777457205,-500.0,0.00011913,2]
[348770111,1736777457215,-500.0,0.00011913,2]
[348770112,1736777457225,-500.0,0.00011914,2]
[348770113,1736777457236,-1107.95,0.00011914,2]
[348770114,1736777457246,-3147.5,0.00011914,2]
[348770115,1736777457256,-500.0,0.00011914,2]
[348770116,1736777457266,-794.02,0.00011914,2]
[348770117,1736777457276,-872.35,0.00011914,2]
[348770118,1736777457287,-674.05,0.00011914,2]
[348770119,1736777457297,-1319.23,0.00011914,2]
[348770120,1736777457309,-1575.65,0.00011914,2]
[348770121,1736777457319,-2283.69,0.00011914,2]
[348770122,1736777457330,-680.21,0.00011914,2]
[348770123,1736777457340,-1931.31,0.00011914,2]
[348770124,1736777457350,-500.0,0.00011914,2]
[348770125,1736777457367,-1060.09,0.00011914,2]
[348770126,1736777457377,-1040.65,0.00011914,2]
[348770127,1736777457387,-761.73,0.00011914,2]
[348770128,1736777457398,-698.49,0.00011914,2]
[348770129,1736777457408,-637.412955,0.00011914,2]
[348770130,1736777457419,-1037.38,0.00011914,2]
[348770131,1736777457429,-2091.78,0.00011914,2]
[348770132,1736777457440,-1563.602,0.00011917,2]
[348770133,1736777457450,-179.654,0.00011917,2]
[348770134,1736777457460,-240.5866716,0.00011934,2]
[348770135,1736777457470,-213.96529045,0.00011974,2]
[348770136,1736777457481,-17459.0,0.00012,2]
[348770137,1736777457490,-11000.00713082,0.00012,2]
[348770138,1736777457500,-240.5866716,0.00012003,2]
[348770139,1736777457511,-429.82131162,0.00012039,2]
[348770140,1736777457522,-1435.01,0.00012054,2]
[348770141,1736777457538,-1143.34,0.00012054,2]
[348770142,1736777457549,-1009.42,0.00012054,2]
[348770143,1736777457560,-1455.34,0.00012054,2]
[348770144,1736777457570,-1163.72,0.00012054,2]
[348770145,1736777457581,-645.57,0.00012054,2]
[348770146,1736777457591,-500.0,0.00012054,2]
[348770147,1736777457602,-500.0,0.00012054,2]
[348770148,1736777457617,-200.0,0.00012055,2]
[348770149,1736777457627,-240.5866716,0.00012072,2]
[348770150,1736777457637,-524.0,0.00012093,2]
[348770151,1736777457647,-240.5866716,0.00012141,2]
[348770152,1736777457657,-500.0,0.00012186,2]
[348770153,1736777457667,-500.0,0.00012186,2]
[348770154,1736777457677,-747.91,0.00012186,2]
[348770155,1736777457687,-500.0,0.00012186,2]
[348770156,1736777457698,-476.705206,0.00012186,2]
[348770157,1736777457708,-500.0,0.00012186,2]
[348770158,1736777457718,-820.8,0.00012186,2]
[348770159,1736777457728,-500.0,0.00012186,2]
[348770160,1736777457737,-1112.65,0.00012186,2]
[348770161,1736777457747,-2054.5,0.00012186,2]
[348770162,1736777457758,-500.0,0.00012186,2]
[348770163,1736777457768,-1088.44,0.00012186,2]
[348770164,1736777457778,-1051.32,0.00012186,2]
[348770165,1736777457788,-2523.34,0.00012186,2]
[348770166,1736777457798,-522.7,0.00012186,2]
[348770167,1736777457808,-1243.51,0.00012186,2]
[348770168,1736777457818,-759.58,0.00012186,2]
[348770169,1736777457828,-671.58,0.00012186,2]
[348770170,1736777457838,-2333.43,0.00012186,2]
[348770171,1736777457848,-181953.0,0.00012187,2]
[348770172,1736777457862,-697.84,0.00012187,2]
[348770173,1736777457872,-920.92,0.00012187,2]
[348770174,1736777457882,-629.0,0.00012187,2]
[348770175,1736777457892,-515.86,0.00012187,2]
[348770176,1736777457902,-500.0,0.00012187,2]
[348770177,1736777457912,-500.0,0.00012187,2]
[348770178,1736777457921,-500.0,0.00012187,2]
[348770179,1736777457931,-535.48,0.00012187,2]
[348770180,1736777457940,-500.0,0.00012187,2]
[348770181,1736777457950,-661.51,0.00012187,2]
[348770182,1736777457960,-885.48,0.00012187,2]
[348770183,1736777457970,-943.92,0.00012187,2]
[348770184,1736777457979,-1290.55,0.00012187,2]
[348770185,1736777457988,-500.0,0.00012187,2]
[348770186,1736777457999,-500.0,0.00012187,2]
[348770187,1736777458008,-500.0,0.00012187,2]
[348770188,1736777458018,-510.15,0.00012187,2]
[348770189,1736777458028,-500.0,0.00012187,2]
[348770190,1736777458038,-484.02383458,0.00012187,2]
[348770191,1736777458047,-500.0,0.00012187,2]
[348770192,1736777458057,-532.09,0.00012187,2]
[348770193,1736777458067,-500.0,0.00012187,2]
[348770194,1736777458077,-500.0,0.00012187,2]
[348770195,1736777458088,-500.0,0.00012187,2]
[348770196,1736777458098,-500.0,0.00012187,2]
[348770197,1736777458111,-500.0,0.00012187,2]
[348770198,1736777458120,-500.0,0.00012187,2]
[348770199,1736777458130,-530.88,0.00012187,2]
[348770200,1736777458194,-500.0,0.00012187,2]
[348770201,1736777458205,-500.0,0.00012187,2]
[348770202,1736777458215,-611.9,0.00012187,2]
[348770203,1736777458224,-1763.38,0.00012187,2]
[348770204,1736777458234,-500.0,0.00012187,2]
[348770205,1736777458244,-563.5,0.00012187,2]
[348770206,1736777458254,-500.0,0.00012187,2]
[348770207,1736777458263,-581.76,0.00012187,2]
[348770208,1736777458272,-500.0,0.00012187,2]
[348770209,1736777458282,-500.0,0.00012187,2]
[348770210,1736777458291,-500.0,0.00012187,2]
[348770211,1736777458301,-500.0,0.00012187,2]
[348770212,1736777458310,-647.68,0.00012187,2]
[348770213,1736777458319,-500.0,0.00012187,2]
[348770214,1736777458328,-500.0,0.00012187,2]
[348770215,1736777458337,-500.0,0.00012187,2]
[348770216,1736777458347,-500.0,0.00012187,2]
[348770217,1736777458360,-634.78,0.00012187,2]
[348770218,1736777458370,-1006.54,0.00012187,2]
[348770219,1736777458380,-500.0,0.00012187,2]
[348770220,1736777458389,-500.0,0.00012187,2]
[348770221,1736777458399,-500.0,0.00012187,2]